[Event "Polish Youth G18 Championship 2023"]
[Site "Jastrzebia Gora"]
[Date "2023.03.13"]
[Round "2.1"]
[White "Starosta, Martyna"]
[Black "Arciszewska, Zuzanna"]
[Result "1-0"]
[ECO "E36"]
[WhiteElo "2138"]
[BlackElo "1750"]
[Annotator "TA"]
[PlyCount "83"]
[EventDate "2023.03.11"]
[EventType "swiss"]
[EventCountry "POL"]
[SourceTitle "playchess.com"]
[Source "ChessBase"]
[SourceQuality "1"]
[TimeControl "40/5400+30:1800+30"]

{[%evp 11,83,-4,18,7,40,32,35,6,68,31,31,27,37,35,27,27,46,46,64,35,39,39,45,5,22,29,41,43,68,68,68,68,68,68,68,68,72,48,49,22,33,29,28,0,21,0,0,0,0,0,0,0,8,26,306,304,293,304,299,272,211,0,29969,29971,29973,29974,29973,29972,29966,29970,6303,29941,5381,5093]} 1. d4 {[%emt 0:00:03]} Nf6 {[%emt 0:00:12]} 2. c4 {[%emt 0:00:05]} e6 {[%emt 0:00:21]} 3. Nc3 {[%emt 0:00:06]} Bb4 {[%emt 0:00:36]} 4. Qc2 {[%emt 0:00:07]} d5 {[%emt 0:03:43]} 5. a3 {[%emt 0:00:06]} Bxc3+ {[%emt 0:01:43]} 6. Qxc3 {[%emt 0:00:06]} b6 {[%emt 0:03:17] 6...0-0 is becoming the main line.} 7. Bg5 {[%emt 0:09:07] E36: Nimzo-Indian: Classical: 4...d5 5 a3.} c6 {[%emt 0:07:34]} 8. cxd5 {[%emt 0:05:20]} exd5 {[%emt 0:00:43] [#]} 9. Nf3 $146 {[%emt 0:02:25] White is slightly better.} ({Predecessor:} 9. e3 h6 10. Bh4 Bf5 11. Rc1 O-O 12. Bd3 Bxd3 13. Qxd3 c5 14. dxc5 bxc5 15. Rxc5 {½-½ Lang,F (1988)-Afloarei,J (1887) EU A/Cup C19/pr11 email 2019}) 9... Bb7 {[%emt 0:03:59] Black is weak on the dark squares} (9... h6 $11 10. Bh4 O-O) 10. Ne5 {[%emt 0:02:59]} Qd6 {[%emt 0:07:36]} 11. Bxf6 {[%emt 0:06:01]} Qxf6 {[%emt 0:00:36]} 12. e3 {[%emt 0:00:15]} O-O {[%emt 0:03:17]} 13. b4 {[%emt 0:02:38]} Qe6 {[%emt 0:08:59]} 14. Be2 {[%emt 0:02:16][%cal Bf1e2,Be2g4,Bg4f5][%mdl 32]} f6 {[%emt 0:03:42]} 15. Bg4 {[%emt 0:04:03] White is more active.} Qd6 {[%emt 0:03:51]} 16. Nd3 {[%emt 0:00:27]} Nd7 {[%emt 0:02:26]} 17. Bf5 {[%emt 0:04:48][%cal Ob4b5]} Rfe8 {[%emt 0:04:01]} (17... g6 $5 {[%cal Rg6f5]} 18. Bg4 Ba6 $11) 18. Rc1 {[%emt 0:03:57][%cal Ob4b5]} Nf8 {[%emt 0:01:47]} 19. O-O {[%emt 0:01:20]} Bc8 {[%emt 0:05:34]} 20. Bxc8 {[%emt 0:00:56]} (20. Qxc6 $2 Qxc6 21. Bxh7+ Kxh7 $19) 20... Raxc8 {[%emt 0:00:09]} 21. Qb3 {[%emt 0:02:58]} Rc7 {[%emt 0:12:09]} 22. Rc3 {[%emt 0:02:51]} Ne6 {[%emt 0:01:33]} 23. Rfc1 {[%emt 0:00:27]} Rec8 {[%emt 0:00:39]} 24. Qc2 {[%emt 0:02:09]} g6 {[%emt 0:04:14]} 25. f3 {[%emt 0:05:59]} Kg7 {[%emt 0:00:36]} 26. Qa4 {[%emt 0:01:19]} Kf8 {[%emt 0:05:47]} 27. Qa6 {[%emt 0:05:52]} g5 {[%emt 0:07:40]} 28. b5 {[%emt 0:02:36]} (28. Nf2 {simplifies} Qe7 29. Qd3 c5 30. dxc5 bxc5 31. bxc5 Rxc5 32. Rxc5 Rxc5 33. Rd1) 28... c5 {[%emt 0:05:18]} 29. dxc5 {[%emt 0:00:42]} Nxc5 {[%emt 0:00:08]} 30. Nxc5 {[%emt 0:00:47]} Rxc5 {[%emt 0:00:16]} 31. Qxc8+ {[%emt 0:00:13]} Rxc8 {[%emt 0:00:05]} 32. Rxc8+ $11 {[%emt 0:00:07][%mdl 4096] Endgame KQ-KRR} Kf7 $2 {[%emt 0:00:33][%mdl 8192] [#]} (32... Kg7 $1 $11 {and Black has nothing to worry.}) 33. R1c7+ $18 {[%emt 0:03:24]} Kg6 {[%emt 0:00:10]} 34. Rg8+ {[%emt 0:10:20]} (34. Rxa7 Qe6 35. Rd8 (35. Rc3 d4 $19) 35... Qxe3+ 36. Kf1 Qd3+ 37. Ke1 Qd4 $15) 34... Kh6 {[%emt 0:00:37]} 35. Rgg7 {[%emt 0:02:17]} (35. Rxa7 Qe6 36. Rgg7 Qxe3+ 37. Kf1 Qd3+ 38. Kf2 Qd4+ 39. Kf1 Qd1+ 40. Kf2 Qd2+ 41. Kf1 Qd3+ 42. Kg1 Qe3+ 43. Kf1 Qd3+ $11) 35... Qxa3 {[%emt 0:01:27]} 36. Rge7 {[%emt 0:04:21]} ({White has to play} 36. Rxh7+ $18 Kg6 37. Rcg7+ (37. Rxa7 Qxe3+ 38. Kf1 Qb3 $15) 37... Kf5 38. Re7 (38. Rxa7 Qxe3+ 39. Kf1 Qd4 $15) (38. g4+ Ke5 $11) 38... Qc1+ 39. Kf2) 36... d4 $2 {[%emt 0:02:38][%mdl 8192] [#]} 37. g4 $1 {[%emt 0:01:47]} ({Inferior is} 37. exd4 Qa1+ 38. Kf2 Qxd4+ 39. Kf1 Qd1+ 40. Kf2 Qd4+ 41. Kf1 Qd1+ 42. Kf2 Qd4+ $11) ({Not} 37. Rxh7+ Kg6 38. e4 (38. Rxa7 Qc1+ 39. Kf2 dxe3+ 40. Kg3 e2 41. Kh3 e1=Q 42. Rag7+ Kf5 43. Rf7 Qce3) (38. exd4 Qa1+ 39. Kf2 Qxd4+ 40. Kf1 Qd1+ 41. Kf2 Qd4+ 42. Kg3 Kf5 $11) 38... f5 $14) 37... Qd3 {[%emt 0:00:32]} 38. Rxh7+ {[%emt 0:02:35]} ({Stronger than} 38. Rxa7 Qd1+ 39. Kf2 Qd2+ 40. Kg3 Qe1+ 41. Kh3 Qf1+ 42. Kg3 Qg1+ 43. Kh3 Qf1+ 44. Kg3 Qg1+ 45. Kh3 Qf1+ $11) 38... Qxh7 {[%emt 0:00:07]} 39. Rxh7+ {[%emt 0:00:04]} Kxh7 {[%emt 0:00:05]} 40. exd4 {[%emt 0:00:00]} Kg7 {[%emt 0:00:00]} 41. Kf2 {[%emt 0:00:52]} Kf7 {[%emt 0:00:07]} 42. Ke3 {[%emt 0:00:23] Weighted Error Value: White=0.15 (very precise) /Black=0.44} 1-0

[Event "Polish Youth G18 Championship 2023"]
[Site "Jastrzebia Gora"]
[Date "2023.03.13"]
[Round "2.2"]
[White "Uliasz, Katarzyna"]
[Black "Goraj, Barbara"]
[Result "1/2-1/2"]
[ECO "A08"]
[WhiteElo "1670"]
[BlackElo "2130"]
[Annotator "TA"]
[PlyCount "136"]
[EventDate "2023.03.11"]
[EventType "swiss"]
[EventCountry "POL"]
[SourceTitle "playchess.com"]
[Source "ChessBase"]
[SourceQuality "1"]
[TimeControl "40/5400+30:1800+30"]

{[%evp 17,136,0,17,-8,36,-6,-11,-61,-36,-63,-22,-56,11,-10,-4,-100,-95,-87,-93,-89,-103,-113,-67,-78,-70,-83,-73,-126,-120,-148,-111,-371,96,120,100,0,0,12,96,105,140,123,158,116,114,122,158,75,102,17,166,136,155,155,137,135,209,225,204,204,222,29,124,77,58,66,113,28,369,282,393,41,72,60,277,0,0,0,0,0,0,0,0,0,0,-9,0,-187,-31,-23,-35,-352,-257,-354,-265,-264,0,0,0,0,0,0,0,0,0,0,0,0,0,0,0,0,0,0,0,0,0,0,8,0,7]} 1. g3 {[%emt 0:00:03]} d5 {[%emt 0:00:29]} 2. Nf3 {[%emt 0:00:08]} c5 {[%emt 0:00:56]} 3. Bg2 {[%emt 0:00:10]} Nf6 {[%emt 0:00:33]} 4. O-O {[%emt 0:00:21]} Nc6 {[%emt 0:01:07]} 5. d3 {[%emt 0:00:57]} e6 {[%emt 0:01:02]} 6. Nbd2 {[%emt 0:01:23]} b6 {[%emt 0:01:41]} 7. e4 {[%emt 0:02:17]} Bb7 {[%emt 0:03:05]} 8. Re1 {[%emt 0:02:25]} Be7 {[%emt 0:01:17]} 9. c3 {[%emt 0:01:50]} h6 {[%emt 0:05:28]} 10. h4 {[%emt 0:09:32] C00: French: Unusual White 2nd moves.} a5 {[%emt 0:17:44]} 11. e5 {[%emt 0:17:30]} Nd7 {[%emt 0:01:21] [#]} 12. h5 $146 {[%emt 0:00:28]} (12. a4 $11) ({Predecessor:} 12. Nf1 b5 13. Qd2 Nb6 14. Qf4 Qd7 15. h5 a4 16. Qg4 Bf8 17. Be3 a3 18. b3 {1-0 Kislinsky,A (2336)-Kosikov,A (2415) Kiev Independence Cup-A 2nd 2002 (9)}) 12... Qc7 {[%emt 0:03:20][%cal Rd7e5]} 13. Qe2 {[%emt 0:01:18]} Ba6 {[%emt 0:03:08]} 14. Nf1 {[%emt 0:04:48]} O-O-O {[%emt 0:02:00]} (14... b5 $15) 15. Bd2 {[%emt 0:04:14]} Rdg8 {[%emt 0:07:19]} 16. a4 {[%emt 0:10:28]} (16. Rab1 $11) 16... g6 {[%emt 0:04:08]} 17. hxg6 {[%emt 0:01:57]} Rxg6 {[%emt 0:01:10]} 18. Rac1 {[%emt 0:04:53][%cal Ob2b4]} Kb8 {[%emt 0:07:02]} 19. Bf4 {[%emt 0:08:17]} Ka7 {[%emt 0:04:30]} (19... Bg5 $17) 20. Ne3 $15 {[%emt 0:04:12][%cal Oe3d5]} Qd8 $1 {[%emt 0:01:33]} 21. Nc2 {[%emt 0:03:26][%cal Ob2b4]} Bg5 {[%emt 0:05:26]} 22. Bxg5 {[%emt 0:02:19]} (22. Qd2 $142) 22... hxg5 $17 {[%emt 0:00:11][%cal Bh6g5,Bg5g4][%mdl 32]} 23. b4 {[%emt 0:03:07]} g4 $1 {[%emt 0:11:19]} (23... cxb4 $6 24. Ncd4 Ndb8 25. Nb5+ Ka8 26. c4 $11) 24. Nh4 {[%emt 0:08:32][%mdl 8192]} (24. Nd2 $17 cxb4 25. Nd4 Nxd4 26. cxd4) 24... Ncxe5 $2 {[%emt 0:01:11]} (24... Rxh4 $1 $19 25. b5 (25. gxh4 $2 Ncxe5 26. b5 Nf3+ 27. Kf1 Nh2+ 28. Kg1 Qxh4 $19) 25... Ncxe5 26. gxh4 Qxh4) 25. Nxg6 $16 {[%emt 0:03:25]} Nxg6 {[%emt 0:00:45]} (25... Bxd3 $2 26. Nxe5 Bxe2 27. Nc6+ (27. Nxf7 Qf6 $11) 27... Kb7 28. Nxd8+ $18) 26. b5 {[%emt 0:01:00]} (26. Qxg4 $6 Nge5 27. Qf4 Nxd3 28. Qxf7 Nxc1 29. Rxc1 Qe8 $11) (26. bxa5 $16 bxa5 27. Na3 (27. Qxg4 Bxd3 28. Nd4 Qf6 $14)) 26... Bb7 $11 {[%emt 0:02:05]} 27. Qxg4 {[%emt 0:00:40]} Nge5 {[%emt 0:04:54]} (27... Nde5 $1 $11 {remains equal.} 28. Qe2 d4 29. Bxb7 Kxb7) 28. Qe2 $16 {[%emt 0:00:51]} Qg8 {[%emt 0:00:57]} 29. d4 {[%emt 0:00:29]} Nc4 {[%emt 0:03:05]} 30. Ne3 $1 {[%emt 0:00:41]} Nd6 {[%emt 0:00:12]} 31. Qg4 {[%emt 0:00:39]} Qh7 {[%emt 0:01:27]} 32. Red1 {[%emt 0:01:38]} (32. Kf1 $142) 32... Ne4 {[%emt 0:01:06]} (32... cxd4 $2 33. cxd4 Qh2+ 34. Kf1 $18) 33. Bxe4 {[%emt 0:00:44]} (33. Qh4 $16) 33... dxe4 {[%emt 0:03:13]} (33... f5 $1 $11 34. Qh4 Qg7) 34. Kf1 $1 $18 {[%emt 0:00:04]} (34. Qh4 Qg7 35. Qg4 Qxg4 36. Nxg4 e3 37. fxe3 (37. Nxe3 $2 Rh1#) 37... Bf3 $16) 34... f5 {[%emt 0:01:24]} 35. Qf4 {[%emt 0:00:59]} (35. Qh4 $6 Qxh4 36. gxh4 f4 $14) 35... Qh5 {[%emt 0:01:16]} 36. Ke1 $1 {[%emt 0:00:32]} Rc8 {[%emt 0:00:32]} (36... Rh7 $16 37. Kd2 Qf7) 37. Kd2 {[%emt 0:01:03]} Nf6 {[%emt 0:00:18]} (37... cxd4 $2 38. cxd4 Rf8 39. Qd6 $18) 38. Rh1 {[%emt 0:00:39]} Qf7 {[%emt 0:00:16]} 39. Qh6 $2 {[%emt 0:00:53]} (39. dxc5 $18 Rxc5 40. Rh8) 39... Qe7 {[%emt 0:00:28]} (39... Ng4 $1 $11 40. Nxg4 fxg4) 40. Ke2 {[%emt 0:00:00]} ({White should play} 40. dxc5 $1 {Black must now prevent c6.} Rxc5 41. Ke2 (41. Ke1 Nd5 $14)) 40... cxd4 $16 {[%emt 0:00:00]} 41. cxd4 {[%emt 0:06:35] aiming for Rxc8.} Rd8 {[%emt 0:04:46] Repels Rxc8} 42. Rhd1 {[%emt 0:02:39]} (42. Kf1 $1 $16) 42... Nh7 $2 {[%emt 0:03:32][%mdl 8192] Against Qg5} (42... Ng4 $11 {and Black has nothing to worry.} 43. Nxg4 fxg4) 43. Qf4 {[%emt 0:03:51]} Rd7 {[%emt 0:03:36]} 44. Rc4 $2 ({Better is} 44. Nc4 $18) 44... Ng5 $1 $14 {[%emt 0:03:08]} 45. d5 {[%emt 0:12:33] Threatens to win with Qe5.} exd5 $2 {[%emt 0:03:13] [#]} (45... Nf3 $1 $14) 46. Nxd5 $2 {[%emt 0:01:34]} Qa3 $11 {[%emt 0:02:34] ...Qa2+ is the strong threat.} (46... Rxd5 $2 47. Rxd5 Qf7 48. Rdd4 $18) 47. Rc3 {[%emt 0:06:29]} (47. Qxf5 $2 {loses.} Qa2+ 48. Ke3 Rf7 $19) 47... Qxa4 {[%emt 0:02:20]} 48. Qxg5 {[%emt 0:00:45]} Qxb5+ {[%emt 0:00:33]} (48... Rxd5 $2 49. Rxd5 Bxd5 50. Rc7+ (50. Qxf5 Qxb5+ 51. Ke3 Qf1 $16) 50... Bb7 51. Qxf5 Qa2+ 52. Ke3 $18 (52. Kf1 e3 $18)) 49. Ke3 $1 {[%emt 0:00:39][%cal Od5c7]} Rxd5 {[%emt 0:00:49]} 50. Rxd5 {[%emt 0:00:36]} Qxd5 {[%emt 0:00:19][%mdl 4096] Endgame KQR-KQB} 51. Qf6 {[%emt 0:00:42]} a4 {[%emt 0:04:52]} (51... Qd1 $5 52. Kf4 $8 Qg4+ 53. Ke5 Qe2 $11) 52. Kf4 $2 {[%emt 0:00:34] [#] Active counter play!} (52. Qd4 $11 {and White is okay.} Qb5 53. Kf4) 52... Qd2+ $2 {[%emt 0:00:21]} (52... b5 $1 $19 53. Qe5 Qd2+ 54. Kxf5 Qxf2+ 55. Kg5 Qd2+ 56. Kf5 Qd7+ 57. Kf4 Qd2+ 58. Kf5 Ka6) 53. Kxf5 $15 {[%emt 0:00:26]} Qxf2+ {[%emt 0:00:16]} 54. Ke5 $2 {[%emt 0:00:11][%mdl 8192] [#]} (54. Ke6 $15 Qa2+ 55. Ke7) 54... Qd2 $1 $19 {[%emt 0:00:43]} 55. Ke6 {[%emt 0:00:47][%cal Be5e6,Be6f6,Bf6e7,Be7d6][%mdl 32]} e3 {[%emt 0:05:34] ( -> ...e2)} 56. Qe5 {[%emt 0:00:16]} Qa2+ $2 {[%emt 0:00:51]} (56... e2 $19 57. Re3 Bf3) 57. Kf6 $1 $11 {[%emt 0:00:30] The position is equal.} Qf2+ {[%emt 0:00:14]} 58. Ke7 {[%emt 0:00:28]} Ka6 {[%emt 0:01:27] And now ...e2 would win.} (58... e2 $5 59. Re3 $8 Bf3 60. Qc7+ Bb7 $11) 59. Rxe3 {[%emt 0:00:30]} Bc6 {[%emt 0:00:48]} 60. Re2 {[%emt 0:01:00]} Qf3 {[%emt 0:00:14]} 61. Re3 {[%emt 0:00:27]} Qd5 {[%emt 0:01:01]} 62. Qxd5 {[%emt 0:00:08]} Bxd5 {[%emt 0:00:04] KR-KB} 63. Kd6 {[%emt 0:00:08]} Bc4 {[%emt 0:00:51]} 64. g4 {[%emt 0:00:47]} Ka5 {[%emt 0:00:29]} 65. Kc6 {[%emt 0:00:42]} Bb5+ {[%emt 0:00:54]} 66. Kb7 {[%emt 0:00:08]} Bc4 {[%emt 0:00:28]} 67. Kc6 {[%emt 0:00:15]} Bb5+ {[%emt 0:00:31]} 68. Kb7 {[%emt 0:00:05]} (68. Kd5 $5 Kb4 $8 69. Re4+ Kc3 70. g5 $11) 68... Bc4 {[%emt 0:00:27] What a fight!   Weighted Error Value: White=0.58/Black=0.47} 1/2-1/2

[Event "Polish Youth G18 Championship 2023"]
[Site "Jastrzebia Gora"]
[Date "2023.03.13"]
[Round "2.3"]
[White "Zabrzanska, Weronika"]
[Black "Bugaj, Hanna"]
[Result "1-0"]
[ECO "C02"]
[WhiteElo "2021"]
[BlackElo "1639"]
[Annotator "TA"]
[PlyCount "45"]
[EventDate "2023.03.11"]
[EventType "swiss"]
[EventCountry "POL"]
[SourceTitle "playchess.com"]
[Source "ChessBase"]
[SourceQuality "1"]
[TimeControl "40/5400+30:1800+30"]

{[%evp 17,45,18,33,23,43,22,75,12,6,21,29,15,104,110,170,158,288,325,437,407,382,307,366,360,747,739,956,939,2014,1142]} 1. e4 {[%emt 0:00:04]} e6 {[%emt 0:00:08]} 2. d4 {[%emt 0:00:17]} d5 {[%emt 0:00:12]} 3. e5 {[%emt 0:00:28]} c5 {[%emt 0:00:17]} 4. c3 {[%emt 0:00:11]} Qb6 {[%emt 0:00:27]} 5. Nf3 {[%emt 0:00:14]} Bd7 {[%emt 0:00:10]} 6. Bd3 {[%emt 0:01:49]} Bb5 {[%emt 0:01:39]} 7. dxc5 {[%emt 0:07:42]} Bxc5 {[%emt 0:01:00]} 8. O-O {[%emt 0:08:26]} Bxd3 {[%emt 0:02:42]} 9. Qxd3 {[%emt 0:00:07]} Nc6 {[%emt 0:01:22]} 10. b4 {[%emt 0:01:27] C02: French: Advance Variation.} Be7 {[%emt 0:03:41]} 11. a4 {[%emt 0:05:00] [#]} f6 $146 {[%emt 0:21:54]} (11... a6 $11 {keeps the balance.}) ({Predecessor:} 11... h5 12. Re1 Nh6 13. a5 Qc7 14. Na3 a6 15. h3 Nf5 16. Bd2 Rg8 17. g4 hxg4 18. hxg4 {0-1 Demin,V (2430)-Yoo,C (2455) Titled Tuesday intern op 18th May blitz 2021 (7)}) 12. Re1 {[%emt 0:10:33]} (12. exf6 $16 Nxf6 13. Re1) 12... Nxe5 $11 {[%emt 0:10:27]} 13. Nxe5 {[%emt 0:01:53]} fxe5 {[%emt 0:00:07]} 14. Rxe5 {[%emt 0:01:01] Strongly threatening Qh3.} Kf7 {[%emt 0:05:50]} (14... Bf6 $11 {remains equal.} 15. a5 Qc6) 15. Nd2 $16 {[%emt 0:04:44][%cal Bb1d2,Bd2f3,Bf3e5,Be5g6][%mdl 32] White is more active.} Nf6 {[%emt 0:02:27]} (15... Bf6 $16 {might work better.} 16. Re2 (16. Qf3 Ne7 $11) 16... Ne7) 16. Nf3 $18 {[%emt 0:04:00] [#] aiming for Ng5+.} ({Worse is} 16. Qf3 Bd6 17. Re2 (17. a5 Qc7 $15) 17... e5 $11) 16... Ng4 {[%emt 0:19:22]} (16... h6 $16 {was necessary.}) 17. Re2 {[%emt 0:02:14] h3 would be deadly.} Bf6 {[%emt 0:02:35]} 18. h3 {[%emt 0:01:23]} Nh6 {[%emt 0:00:24]} 19. g4 {[%emt 0:03:35] Dodges Nf5} ({Don't do} 19. Ng5+ Bxg5 20. Bxg5 Rae8 21. Bxh6 gxh6 $18) 19... Rac8 {[%emt 0:05:51]} 20. Bd2 {[%emt 0:01:50]} ({Don't play} 20. Ng5+ Bxg5 21. Bxg5 Rce8 $18) 20... Bd8 $2 {[%emt 0:07:08]} (20... Qc6 21. g5 Nf5) 21. Ne5+ {[%emt 0:06:44] White is clearly winning.} Ke8 {[%emt 0:01:38]} 22. Rae1 {[%emt 0:02:32]} Bc7 {[%emt 0:04:13] [#]} 23. Ng6 $1 {[%emt 0:02:49][%mdl 576] Discovered Attack.   Weighted Error Value: White=0.20 (precise) /Black=0.63} 1-0

[Event "Polish Youth G18 Championship 2023"]
[Site "Jastrzebia Gora"]
[Date "2023.03.13"]
[Round "2.4"]
[White "Lochina, Justyna"]
[Black "Hertlein, Irena"]
[Result "1/2-1/2"]
[ECO "B57"]
[WhiteElo "1645"]
[BlackElo "1994"]
[Annotator "TA"]
[PlyCount "88"]
[EventDate "2023.03.11"]
[EventType "swiss"]
[EventCountry "POL"]
[SourceTitle "playchess.com"]
[Source "ChessBase"]
[SourceQuality "1"]
[TimeControl "40/5400+30:1800+30"]

{[%evp 24,88,17,6,10,0,0,-17,15,-3,30,35,90,57,62,59,197,203,200,199,289,281,286,288,282,281,266,262,266,259,289,211,206,214,199,120,175,95,103,88,189,35,39,29,29,29,41,9,10,0,0,0,0,0,0,0,0,0,0,0,0,0,0,0,0,0,0]} 1. e4 {[%emt 0:00:01] ChessBase} c5 {[%emt 0:00:07]} 2. Nf3 {[%emt 0:00:53]} Nc6 {[%emt 0:01:05]} 3. d4 {[%emt 0:02:55]} cxd4 {[%emt 0:00:07]} 4. Nxd4 {[%emt 0:00:07]} Nf6 {[%emt 0:00:08]} 5. Nc3 {[%emt 0:01:48]} d6 {[%emt 0:00:07]} 6. Bc4 {[%emt 0:07:35]} Qb6 {[%emt 0:00:14]} 7. Nb3 {[%emt 0:02:07]} e6 {[%emt 0:00:18]} 8. O-O {[%emt 0:02:50]} Be7 {[%emt 0:00:41]} 9. Be3 {[%emt 0:04:35]} Qc7 {[%emt 0:00:37]} 10. f4 {[%emt 0:03:02]} a6 {[%emt 0:02:35]} 11. Bd3 {[%emt 0:01:03]} b5 {[%emt 0:00:32]} 12. Qf3 {[%emt 0:06:32]} O-O {[%emt 0:00:34]} 13. a4 {[%emt 0:12:07]} b4 {[%emt 0:21:23] B82: Sicilian Scheveningen: 6 f4.} 14. Ne2 {[%emt 0:00:30]} e5 {[%emt 0:00:46][%cal Od6d5]} 15. f5 {[%emt 0:07:02]} d5 {[%emt 0:04:06]} 16. Ng3 {[%emt 0:06:01] [#]} dxe4 $146 {[%emt 0:15:12]} (16... d4 $5 {[%cal Rd4e3]} 17. Bg5 Nb8 $11) ({Predecessor:} 16... Na5 17. exd5 Bb7 18. Ne4 Nc4 19. Bg5 Nxb2 20. d6 Qxd6 21. Nxd6 Bxf3 22. Rxf3 Bxd6 23. Bxf6 gxf6 {0-1 Spassky,B-Tal,M Candidates f Spassky-Tal +4-1=6 1965 (2)}) 17. Nxe4 {[%emt 0:03:03]} (17. Bxe4 Bb7 $11) 17... Rb8 (17... Bb7 $14) 18. Nxf6+ {[%emt 0:05:17]} Bxf6 {[%emt 0:08:18]} 19. Be4 {White has more active pieces. The black rooks are badly placed.} Na5 {[%emt 0:09:17]} (19... Bb7 $14) 20. Nxa5 $18 {[%emt 0:07:48]} Qxa5 {Black is weak on the light squares} 21. Ba7 Rb7 {[%emt 0:07:51]} (21... Bd7 {was necessary.}) 22. Bxb7 {[%emt 0:06:17]} Qc7 {[%emt 0:00:04]} 23. Bxc8 {[%emt 0:03:00] [#] Threatens to win with Bb7.} Qxa7+ {[%emt 0:00:04]} 24. Qf2 {[%emt 0:01:44]} Qxf2+ {[%emt 0:00:33]} 25. Rxf2 Rxc8 {[%emt 0:00:04][%mdl 4096] Endgame KRR-KRB} 26. Rd1 {[%emt 0:05:09]} Be7 {[%emt 0:01:54]} 27. Rfd2 {[%emt 0:01:56]} Bc5+ {[%emt 0:00:03]} 28. Kf1 {[%emt 0:00:36] Black must now prevent Rd8+.} Bd4 {[%emt 0:00:03]} 29. b3 {[%emt 0:07:12]} (29. c3 $18 bxc3 30. Rc2) 29... Kf8 {[%emt 0:01:55]} (29... g6 $16) 30. Rxd4 ({White should play} 30. g4 $18) 30... exd4 $16 {[%emt 0:00:04]} 31. Rxd4 $18 {[%emt 0:02:50] KR-KR} a5 {[%emt 0:00:15] [#]} (31... Rxc2 $16 32. Rxb4 Rc5) 32. Rd2 $2 {[%emt 0:01:35]} (32. Rc4 $1 $18 {[%cal Rc4c8]} Rd8 33. Rc5) 32... Rc5 $14 {[%emt 0:04:23]} 33. g4 {[%emt 0:00:23]} h5 {[%emt 0:01:14]} 34. h3 {[%emt 0:00:38]} Ke7 {[%emt 0:00:27]} 35. Ke2 {[%emt 0:00:48]} ({But not} 35. gxh5 Rxf5+ 36. Kg2 Rg5+ 37. Kf3 Rxh5 $15) 35... Rc3 {[%emt 0:06:53] The position is equal.} 36. gxh5 {[%emt 0:00:29]} Rc5 $1 {[%emt 0:02:22]} 37. Kf3 {[%emt 0:00:32]} Rxf5+ {[%emt 0:01:59]} 38. Kg4 {[%emt 0:00:26]} Re5 {[%emt 0:03:10]} 39. Rf2 {[%emt 0:00:34]} Ke6 {[%emt 0:01:08]} 40. Rf4 {[%emt 0:00:00]} Rc5 {[%emt 0:00:00]} 41. Re4+ {[%emt 0:07:09]} Kd6 {[%emt 0:17:07] ( -> ...f5+)} 42. Rf4 {[%emt 0:06:34]} Ke6 {[%emt 0:07:00]} 43. Re4+ {[%emt 0:02:03]} Kd6 {[%emt 0:07:54] ...f5+ is the strong threat.} 44. Rf4 {[%emt 0:02:16]} Ke6 {[%emt 0:08:45] Blacks defense is rewarded with a draw.   Weighted Error Value: White=0.22 (precise) /Black=0.28 (precise)} 1/2-1/2